fUST/lending_fUST_20241111
["ID","MTS","AMOUNT","RATE_DAILY","PERIOD"]
[341932242,1731310238163,-7542.72296814,0.0002441,2]
[341932243,1731310238172,-4305.12137897,0.0002441,2]
[341932244,1731310238182,-17314.36873093,0.0002441,2]
[341932245,1731310238191,-3000.0,0.0002441,2]
[341932246,1731310238201,-3000.0,0.0002441,2]
[341932247,1731310238210,-501.54698822,0.0002441,2]
[341932248,1731310238219,-3000.0,0.0002442,2]
[341932249,1731310238229,-3000.0,0.0002442,2]
[341932250,1731310238239,-3000.0,0.0002443,2]
[341932251,1731310238248,-3000.0,0.0002443,2]
[341932252,1731310238258,-3000.0,0.0002444,2]
[341932253,1731310238267,-3000.0,0.0002444,2]
[341932254,1731310238277,-1181.30802419,0.00024443,2]
[341932255,1731310238286,-3000.0,0.0002445,2]
[341932256,1731310238296,-3000.0,0.0002445,2]
[341932257,1731310238305,-11964.07787514,0.00024457,7]
[341932259,1731310238314,-600.0,0.0002446,2]
[341932261,1731310238324,-3000.0,0.0002446,2]
[341932263,1731310238333,-3000.0,0.0002446,2]
[341932264,1731310238342,-3000.0,0.0002447,2]
[341932265,1731310238351,-3000.0,0.0002447,2]
[341932271,1731310238480,-3000.0,0.0002448,2]
[341932272,1731310238490,-3000.0,0.0002448,2]
[341932273,1731310238500,-3000.0,0.0002449,2]
[341932274,1731310238509,-3000.0,0.0002449,2]
[341932275,1731310238518,-3000.0,0.000245,2]
[341932276,1731310238527,-3000.0,0.000245,2]
[341932277,1731310238536,-150.0,0.000245,7]
[341932278,1731310238545,-500.0,0.000245,7]
[341932279,1731310238555,-150.0,0.000245,7]
[341932280,1731310238564,-150.112233,0.000245,7]
[341932281,1731310238574,-150.112233,0.000245,9]
[341932282,1731310238583,-500.0,0.000245,7]
[341932283,1731310238592,-166.71598448,0.000245,7]
[341932284,1731310238602,-164.01357598,0.000245,7]
[341932285,1731310238611,-150.0,0.000245,7]
[341932286,1731310238620,-150.0,0.000245,7]
[341932287,1731310238630,-244.84932449,0.000245,7]
[341932288,1731310238679,-255.15067551,0.000245,7]
[341932289,1731310238689,-150.0,0.000245,2]
[341932290,1731310238698,-500.0,0.000245,7]
[341932291,1731310238707,-147.22153813,0.000245,7]
[341932293,1731310239359,-1097.99844813,0.00023099,2]
[341932294,1731310239369,-211.599114,0.00024152,7]
[341932295,1731310239379,-211.599114,0.00024152,7]
[341932296,1731310239388,-423.27,0.0002418,3]
[341932298,1731310239398,-211.599114,0.0002419,7]
[341932299,1731310239407,-211.599114,0.0002419,7]
[341932300,1731310239417,-211.599114,0.0002419,7]
[341932301,1731310239426,-211.599114,0.0002419,7]
[341932302,1731310239439,-211.599114,0.0002419,7]
[341932303,1731310239448,-211.599114,0.0002419,7]
[341932305,1731310239457,-664.10868,0.000242,7]
[341932307,1731310239466,-211.599114,0.000242,7]
[341932309,1731310239475,-664.108688,0.0002421,7]
[341932311,1731310239484,-211.599114,0.0002421,7]
[341932313,1731310239494,-503.14002875,0.00024346,2]
[341932315,1731310239503,-500.0,0.00024346,2]
[341932318,1731310239512,-500.0,0.00024346,2]
[341932320,1731310239522,-233.51676398,0.00024346,2]
[341932321,1731310239531,-592.22743082,0.00024346,2]
[341932323,1731310239540,-500.0,0.00024346,2]
[341932325,1731310239550,-500.0,0.00024346,2]
[341932327,1731310239559,-500.0,0.00024346,2]
[341932329,1731310239568,-438.72232434,0.00024346,2]
[341932332,1731310239578,-500.0,0.00024346,2]
[341932333,1731310239587,-373.18923002,0.00024346,2]
[341932334,1731310239596,-500.0,0.00024346,2]
[341932335,1731310239605,-500.0,0.00024346,2]
[341932336,1731310239614,-373.46040073,0.00024346,2]
[341932338,1731310239623,-500.0,0.00024346,2]
[341932340,1731310239633,-500.0,0.00024346,2]
[341932341,1731310239642,-500.0,0.00024346,2]
[341932342,1731310239651,-536.80130854,0.00024346,2]
[341932343,1731310239659,-350.64568559,0.00024346,2]
[341932344,1731310239677,-149.35431441,0.00024346,2]
[341932345,1731310239688,-500.0,0.00024346,2]
[341932346,1731310239697,-500.0,0.00024346,2]
[341932347,1731310239706,-500.0,0.00024346,2]
[341932348,1731310239716,-500.0,0.00024346,2]
[341932349,1731310239726,-316.11299021,0.00024346,2]
[341932350,1731310239735,-500.0,0.00024346,2]
[341932351,1731310239745,-500.0,0.00024346,2]
[341932352,1731310239755,-500.0,0.00024346,2]
[341932353,1731310239765,-500.0,0.00024346,2]
[341932354,1731310239774,-650.0,0.00024346,2]
[341932355,1731310239784,-500.0,0.00024346,2]
[341932356,1731310239794,-500.0,0.00024346,2]
[341932357,1731310239805,-450.0,0.00024346,2]
[341932358,1731310239815,-500.0,0.00024346,2]
[341932359,1731310239824,-500.0,0.00024346,2]
[341932360,1731310239834,-5.99955846,0.000245,7]
[341932361,1731310239843,-500.0,0.000245,7]
[341932362,1731310239852,-150.0,0.000245,2]
[341932363,1731310239861,-150.0,0.000245,7]
[341932364,1731310239871,-152.57232141,0.000245,7]
[341932365,1731310239880,-1465.20844379,0.000245,2]
[341932366,1731310239892,-545.00561719,0.000245,2]
[341932367,1731310239903,-461.8204932,0.0002451,2]
[341932368,1731310239919,-2538.1795068,0.0002451,2]
[341932369,1731310239929,-3000.0,0.0002451,2]
[341932370,1731310239941,-3000.0,0.0002452,2]
[341932371,1731310239951,-3000.0,0.0002452,2]
[341932372,1731310239960,-3000.0,0.0002453,2]
[341932373,1731310239970,-2630.15014111,0.0002453,2]
[341932374,1731310240133,-18226.65739375,0.000241,2]
[341932442,1731310317471,160.876194,0.00013973,2]
[341932444,1731310519453,-1169.27083333,0.00021207,2]
[341932445,1731310519483,-300.0,0.00023319,2]
[341932446,1731310519512,-300.0,0.00023319,2]
[341932447,1731310519540,-150.0,0.0002332,2]
[341932448,1731310519568,-1127.0,0.0002332,2]
[341932449,1731310519750,-530.0,0.0002332,2]
[341932450,1731310519778,-2391.0,0.0002332,2]
[341932451,1731310519805,-397.0,0.0002357,11]
[341932452,1731310519833,-57752.91558794,0.000241,2]
[341932453,1731310519861,-444.438545,0.00024152,7]
[341932454,1731310519892,-444.438545,0.00024152,7]
[341932455,1731310519920,-510.593646,0.00024152,7]
[341932456,1731310519947,-510.593646,0.00024152,7]
[341932457,1731310519975,-444.438545,0.00024152,7]
[341932458,1731310520003,-444.438545,0.00024152,7]
[341932459,1731310520031,-510.593646,0.00024152,7]
[341932460,1731310520058,-510.593646,0.00024152,7]
[341932461,1731310520085,-151.0,0.00024152,7]
[341932462,1731310520113,-151.0,0.00024152,7]
[341932463,1731310520148,-151.0,0.00024152,7]
[341932464,1731310520181,-151.0,0.00024152,7]
[341932465,1731310520209,-211.599114,0.0002419,7]
[341932466,1731310520238,-211.599114,0.0002419,7]
[341932467,1731310520265,-211.599114,0.0002419,7]
[341932468,1731310520291,-211.599114,0.0002419,7]
[341932469,1731310520318,-211.599114,0.0002419,7]
[341932470,1731310520346,-211.599114,0.0002419,7]
[341932471,1731310520373,-444.438545,0.0002419,7]
[341932472,1731310520404,-444.438545,0.0002419,7]
[341932473,1731310520430,-444.438545,0.0002419,7]
[341932474,1731310520457,-444.438545,0.0002419,7]
[341932475,1731310520483,-444.438545,0.0002419,7]
[341932476,1731310520510,-444.438545,0.0002419,7]
[341932477,1731310520536,-510.593646,0.0002419,7]
[341932478,1731310520563,-510.593646,0.0002419,7]
[341932479,1731310520589,-510.593646,0.0002419,7]
[341932480,1731310520616,-444.438545,0.0002419,7]
[341932481,1731310520646,-444.438545,0.0002419,7]
[341932482,1731310520672,-510.593646,0.0002419,7]
[341932483,1731310520700,-444.438545,0.0002419,7]
[341932484,1731310520727,-510.593646,0.0002419,7]
[341932485,1731310520754,-444.438545,0.0002419,7]
[341932486,1731310520781,-444.438545,0.0002419,7]
[341932487,1731310520808,-444.438545,0.0002419,7]
[341932488,1731310520834,-510.593646,0.0002419,7]
[341932489,1731310520861,-510.593646,0.0002419,7]
[341932490,1731310520893,-510.593646,0.0002419,7]
[341932491,1731310520919,-510.593646,0.0002419,7]
[341932492,1731310520945,-510.593646,0.0002419,7]
[341932493,1731310520971,-151.0,0.0002419,7]
[341932494,1731310520998,-151.0,0.0002419,7]
[341932495,1731310521027,-151.0,0.0002419,7]
[341932496,1731310521054,-151.0,0.0002419,7]
[341932497,1731310521081,-166.556856,0.0002419,7]
[341932498,1731310521107,-211.599114,0.000242,7]
[341932499,1731310521137,-444.438545,0.000242,7]
[341932500,1731310521165,-510.593646,0.000242,7]
[341932501,1731310521192,-510.593646,0.000242,7]
[341932502,1731310521220,-444.438545,0.000242,7]
[341932503,1731310521248,-510.593646,0.000242,7]
[341932504,1731310521274,-510.593646,0.000242,7]
[341932505,1731310521301,-211.599115,0.0002421,7]
[341932506,1731310521328,-444.438545,0.0002421,7]
[341932507,1731310521354,-510.593646,0.0002421,7]
[341932508,1731310521382,-444.438554,0.0002421,7]
[341932509,1731310521408,-510.593646,0.0002421,7]
[341932510,1731310521435,-160.876194,0.00024224,2]
[341932511,1731310521461,-236.26160487,0.00024246,2]
[341932512,1731310521488,-236.26160483,0.00024324,2]
[341932513,1731310521514,-236.26160483,0.00024402,2]
[341932514,1731310521540,-600.0,0.0002446,2]
[341932515,1731310521566,-236.26160483,0.00024479,2]
[341932516,1731310521592,-186.5,0.000245,2]
[341932517,1731310521618,-914.99870678,0.00024529,2]
[341932518,1731310521645,-190.4,0.00024551,3]
[341932519,1731310521672,-183.37,0.00024557,7]
[341932520,1731310521699,-236.26160483,0.00024557,2]
[341932521,1731310521726,-1739.08483344,0.00024557,2]
[341932522,1731310521752,-500.0,0.0002457,2]
[341932523,1731310521779,-150.0,0.0002457,2]
[341932524,1731310521806,-500.0,0.0002457,2]
[341932525,1731310521833,-256.1879995,0.0002457,2]
[341932526,1731310521860,-500.0,0.0002457,2]
[341932527,1731310521889,-150.0,0.0002457,2]
[341932528,1731310521916,-500.0,0.0002457,2]
[341932529,1731310521943,-500.0,0.0002457,2]
[341932530,1731310521971,-150.0,0.0002457,2]
[341932531,1731310522000,-263.88356486,0.0002457,2]
[341932532,1731310522128,-264.54,0.0002459,3]
[341932533,1731310522181,-220.46,0.0002459,3]
[341932534,1731310522211,-407.03293118,0.000246,2]
[341932535,1731310522241,-225.6,0.000246,7]
[341932536,1731310522270,-275.06,0.000246,7]
[341932537,1731310522297,-186.0,0.000246,2]
[341932538,1731310522327,-150.112233,0.000246,9]
[341932539,1731310522356,-156.764059,0.000246,7]
[341932540,1731310522387,-150.112233,0.000246,9]
[341932541,1731310522416,-150.112233,0.000246,8]
[341932542,1731310522443,-150.0,0.000246,2]
[341932543,1731310522471,-3000.0,0.000246,2]
[341932544,1731310522499,-661.4,0.000246,3]
[341932545,1731310522527,-3000.0,0.0002461,2]
[341932546,1731310522555,-3000.0,0.0002462,2]
[341932547,1731310522583,-3000.0,0.0002463,2]
[341932548,1731310522611,-3000.0,0.0002464,2]
[341932549,1731310522642,-350.0,0.0002465,2]
[341932550,1731310522670,-343.24,0.0002465,2]
[341932551,1731310522698,-3000.0,0.0002465,2]
[341932552,1731310522726,-500.0,0.00024656,2]
[341932553,1731310522754,-636.98083808,0.00024656,2]
[341932554,1731310522783,-500.0,0.00024656,2]
[341932555,1731310522811,-500.0,0.00024656,2]
[341932556,1731310522839,-553.16590597,0.00024656,2]
[341932557,1731310522866,-279.85265781,0.00024656,2]
[341932558,1731310522894,-259.20622899,0.00024656,2]
[341932559,1731310522921,-500.0,0.00024656,2]
[341932560,1731310522951,-500.0,0.00024656,2]
[341932561,1731310522981,-500.0,0.00024656,2]
[341932562,1731310523010,-500.0,0.00024656,2]
[341932563,1731310523038,-500.0,0.00024656,2]
[341932564,1731310523066,-500.0,0.00024656,2]
[341932565,1731310523093,-500.0,0.00024656,2]
[341932566,1731310523122,-178.57293106,0.00024656,2]
[341932567,1731310523153,-290.33284127,0.00024656,2]
[341932568,1731310523186,-500.0,0.00024656,2]
[341932569,1731310523214,-170.75570095,0.00024656,2]
[341932570,1731310523249,-500.0,0.00024656,2]
[341932571,1731310523279,-500.0,0.00024656,2]
[341932572,1731310523307,-500.0,0.00024656,2]
[341932573,1731310523334,-368.45699891,0.00024656,2]
[341932574,1731310523362,-500.0,0.00024656,2]
[341932575,1731310523397,-221.90573148,0.00024656,2]
[341932576,1731310523412,-278.09426852,0.00024656,2]
[341932577,1731310523421,-500.0,0.00024656,2]
[341932578,1731310523430,-391.17656481,0.00024656,2]
[341932579,1731310523441,-108.82343519,0.00024656,2]
[341932580,1731310523451,-191.17656481,0.00024656,2]
[341932581,1731310523466,-300.0,0.00024656,2]
[341932582,1731310523478,-8.82343519,0.00024656,2]
[341932583,1731310523487,-141.17656481,0.00024656,2]
[341932584,1731310523503,-358.82343519,0.00024656,2]
[341932585,1731310523512,-500.0,0.00024656,2]
[341932586,1731310523522,-268.17656481,0.00024656,2]
[341932587,1731310523534,-231.82343519,0.00024656,2]
[341932588,1731310523544,-298.17656481,0.00024656,2]
[341932589,1731310523575,-201.82343519,0.00024656,2]
[341932590,1731310523585,-500.0,0.00024656,2]
[341932591,1731310523594,-500.0,0.00024656,2]
[341932592,1731310523604,-500.0,0.00024656,2]
[341932593,1731310523613,-500.0,0.00024656,2]
[341932594,1731310523622,-189.17656481,0.00024656,2]
[341932595,1731310523638,-310.82343519,0.00024656,2]
[341932596,1731310523647,-86.17656481,0.00024656,2]
[341932597,1731310523659,-413.82343519,0.00024656,2]
[341932598,1731310523668,-500.0,0.00024656,2]
[341932599,1731310523678,-612.46217068,0.00024656,2]
[341932600,1731310523687,-500.0,0.00024656,2]
[341932601,1731310523697,-500.0,0.00024656,2]
[341932602,1731310523707,-500.0,0.00024656,2]
[341932603,1731310523716,-500.0,0.00024656,2]
[341932604,1731310523726,-500.0,0.00024656,2]
[341932605,1731310523735,-500.0,0.00024656,2]
[341932606,1731310523745,-500.0,0.00024656,2]
[341932607,1731310523755,-500.0,0.00024656,2]
[341932608,1731310523764,-500.0,0.00024656,2]
[341932609,1731310523774,-500.0,0.00024656,2]
[341932610,1731310523783,-500.0,0.00024656,2]
[341932611,1731310523792,-500.0,0.00024656,2]
[341932612,1731310523802,-500.0,0.00024656,2]
[341932613,1731310523812,-500.0,0.00024656,2]
[341932614,1731310523821,-500.0,0.00024656,2]
[341932615,1731310523830,-500.0,0.00024656,2]
[341932616,1731310523839,-500.0,0.00024656,2]
[341932617,1731310523849,-500.0,0.00024656,2]
[341932618,1731310523859,-500.0,0.00024656,2]
[341932619,1731310523868,-500.0,0.00024656,2]
[341932620,1731310523877,-450.0,0.00024656,2]
[341932621,1731310523890,-500.0,0.00024656,2]
[341932622,1731310523899,-500.0,0.00024656,2]
[341932623,1731310523908,-500.0,0.00024656,2]
[341932624,1731310523917,-500.0,0.00024656,2]
[341932625,1731310523926,-500.0,0.00024656,2]
[341932626,1731310523935,-595.0,0.00024656,2]
[341932627,1731310523944,-500.0,0.00024656,2]
[341932628,1731310523954,-500.0,0.00024656,2]
[341932629,1731310523963,-152.60671119,0.00024656,2]
[341932630,1731310523973,-500.0,0.00024656,2]
[341932631,1731310523982,-500.0,0.00024656,2]
[341932632,1731310523991,-240.29103582,0.00024656,2]
[341932633,1731310524001,-500.0,0.00024656,2]
[341932634,1731310524010,-500.0,0.00024656,2]
[341932635,1731310524019,-500.0,0.00024656,2]
[341932636,1731310524029,-500.0,0.00024656,2]
[341932637,1731310524039,-500.0,0.00024656,2]
[341932638,1731310524048,-500.0,0.00024656,2]
[341932639,1731310524057,-500.0,0.00024656,2]
[341932640,1731310524067,-500.0,0.00024656,2]
[341932641,1731310524076,-500.0,0.00024656,2]
[341932642,1731310524085,-500.0,0.00024656,2]
[341932643,1731310524094,-500.0,0.00024656,2]
[341932644,1731310524103,-500.0,0.00024656,2]
[341932645,1731310524112,-500.0,0.00024656,2]
[341932646,1731310524121,-500.0,0.00024656,2]
[341932647,1731310524133,-500.0,0.00024656,2]
[341932648,1731310524142,-500.0,0.00024656,2]
[341932649,1731310524151,-500.0,0.00024656,2]
[341932650,1731310524163,-500.0,0.00024656,2]
[341932651,1731310524173,-500.0,0.00024656,2]
[341932652,1731310524182,-500.0,0.00024656,2]
[341932653,1731310524191,-500.0,0.00024656,2]
[341932654,1731310524202,-500.0,0.00024656,2]
[341932655,1731310524211,-500.0,0.00024656,2]
[341932656,1731310524220,-500.0,0.00024656,2]
[341932657,1731310524229,-500.0,0.00024656,2]
[341932658,1731310524239,-500.0,0.00024656,2]
[341932659,1731310524248,-500.0,0.00024656,2]
[341932660,1731310524257,-500.0,0.00024656,2]
[341932661,1731310524267,-500.0,0.00024656,2]
[341932662,1731310524276,-500.0,0.00024656,2]
[341932663,1731310524285,-500.0,0.00024656,2]
[341932664,1731310524294,-500.0,0.00024656,2]
[341932665,1731310524303,-500.0,0.00024656,2]
[341932666,1731310524312,-500.0,0.00024656,2]
[341932667,1731310524321,-500.0,0.00024656,2]
[341932668,1731310524330,-500.0,0.00024656,2]
[341932669,1731310524339,-500.0,0.00024656,2]
[341932670,1731310524348,-500.0,0.00024656,2]
[341932671,1731310524356,-500.0,0.00024656,2]
[341932672,1731310524365,-500.0,0.00024656,2]
[341932673,1731310524375,-563.01119135,0.00024656,2]
[341932674,1731310524389,-500.0,0.00024656,2]
[341932675,1731310524399,-500.0,0.00024656,2]
[341932676,1731310524409,-500.0,0.00024656,2]
[341932677,1731310524419,-500.0,0.00024656,2]
[341932678,1731310524429,-500.0,0.00024656,2]
[341932679,1731310524438,-500.0,0.00024656,2]
[341932680,1731310524448,-500.0,0.00024656,2]
[341932681,1731310524458,-500.0,0.00024656,2]
[341932682,1731310524467,-500.0,0.00024656,2]
[341932683,1731310524477,-500.0,0.00024656,2]
[341932684,1731310524486,-606.30111914,0.00024656,2]
[341932685,1731310524496,-500.0,0.00024656,2]
[341932686,1731310524505,-500.0,0.00024656,2]
[341932687,1731310524514,-500.0,0.00024656,2]
[341932688,1731310524639,-500.0,0.00024656,2]
[341932689,1731310524648,-500.0,0.00024656,2]
[341932690,1731310524657,-500.0,0.00024656,2]
[341932691,1731310524666,-500.0,0.00024656,2]
[341932692,1731310524675,-421.94748963,0.00024657,2]
[341932693,1731310524684,-273.24321151,0.00024657,2]
[341932694,1731310524693,-500.0,0.00024657,2]
[341932695,1731310524702,-500.0,0.00024657,2]
[341932696,1731310524711,-500.0,0.00024657,2]
[341932697,1731310524720,-500.0,0.00024657,2]
[341932698,1731310524729,-500.0,0.00024657,2]
[341932699,1731310524738,-500.0,0.00024657,2]
[341932700,1731310524747,-500.0,0.00024657,2]
[341932701,1731310524757,-500.0,0.00024657,2]
[341932702,1731310524766,-500.0,0.00024657,2]
[341932703,1731310524775,-500.0,0.00024657,2]
[341932704,1731310524785,-500.0,0.00024657,2]
[341932705,1731310524794,-500.0,0.00024657,2]
[341932706,1731310524803,-500.0,0.00024657,2]
[341932707,1731310524813,-500.0,0.00024657,2]
[341932708,1731310524823,-500.0,0.00024657,2]
[341932709,1731310524832,-500.0,0.00024657,2]
[341932710,1731310524842,-500.0,0.00024657,2]
[341932711,1731310524852,-500.0,0.00024657,2]
[341932712,1731310524861,-218.23161597,0.00024657,2]
[341932713,1731310524871,-500.0,0.00024657,2]
[341932714,1731310524880,-205.99760746,0.00024657,2]
[341932715,1731310524897,-94.79711982,0.00024657,2]
[341932716,1731310524907,-349.64142518,0.00024657,2]
[341932717,1731310524918,-150.35857482,0.00024657,2]
[341932718,1731310524928,-294.07997018,0.00024657,2]
[341932719,1731310524944,-219.3740375,0.00024657,2]
[341932720,1731310524954,-291.2196085,0.00024657,2]
[341932721,1731310524965,-210.10813182,0.00024657,2]
[341932722,1731310524975,-300.48551418,0.00024657,2]
[341932723,1731310524996,-199.51448582,0.00024657,2]
[341932724,1731310525005,-244.92405918,0.00024657,2]
[341932725,1731310525018,-255.07594082,0.00024657,2]
[341932726,1731310525028,-189.36260418,0.00024657,2]
[341932727,1731310525040,-310.63739582,0.00024657,2]
[341932728,1731310525049,-193.27408318,0.00024657,2]
[341932729,1731310525059,-6.682167,0.00024657,2]
[341932730,1731310525074,-493.317833,0.00024657,2]
[341932731,1731310525084,-17.275813,0.00024657,2]
[341932732,1731310525095,-151.0,0.00024657,2]
[341932733,1731310525107,-151.0,0.00024657,2]
[341932734,1731310525118,-151.0,0.00024657,2]
[341932735,1731310525129,-29.724187,0.00024657,2]
[341932736,1731310525142,-121.275813,0.00024657,2]
[341932737,1731310525153,-211.599114,0.00024657,2]
[341932738,1731310525173,-181.27303885,0.00024657,2]
[341932739,1731310525183,-30.32607515,0.00024657,2]
[341932740,1731310525194,-211.599114,0.00024657,2]
[341932741,1731310525211,-211.599114,0.00024657,2]
[341932742,1731310525223,-46.47569685,0.00024657,2]
[341932743,1731310525231,-165.12341715,0.00024657,2]
[341932744,1731310525247,-211.599114,0.00024657,2]
[341932745,1731310525259,-123.27746885,0.00024657,2]
[341932746,1731310525268,-321.16107615,0.00024657,2]
[341932747,1731310525279,-180.96881613,0.00024657,2]
[341932748,1731310525289,-263.46972887,0.00024657,2]
[341932749,1731310525300,-236.53027113,0.00024657,2]
[341932750,1731310525309,-207.90827387,0.00024657,2]
[341932751,1731310525321,-292.09172613,0.00024657,2]
[341932752,1731310525330,-152.34681887,0.00024657,2]
[341932753,1731310525341,-347.65318113,0.00024657,2]
[341932754,1731310525351,-96.78536387,0.00024657,2]
[341932755,1731310525366,-403.21463613,0.00024657,2]
[341932756,1731310525375,-41.22390887,0.00024657,2]
[341932757,1731310525389,-479.17729213,0.00024657,2]
[341932758,1731310525399,-31.41635387,0.00024657,2]
[341932759,1731310525414,-468.58364613,0.00024657,2]
[341932760,1731310525423,-42.00999987,0.00024657,2]
[341932761,1731310525438,-370.07470516,0.00024657,2]
[341932762,1731310525447,-140.51894084,0.00024657,2]
[341932763,1731310525463,-359.48105916,0.00024657,2]
[341932764,1731310525471,-84.95748584,0.00024657,2]
[341932765,1731310525490,-444.438545,0.00024657,2]
[341932766,1731310525502,-79.88931929,0.00024657,2]
[341932767,1731310525511,-430.70432671,0.00024657,2]
[341932768,1731310525522,-69.29567329,0.00024657,2]
[341932769,1731310525531,-375.14287171,0.00024657,2]
[341932770,1731310525546,-124.85712829,0.00024657,2]
[341932771,1731310525556,-385.73651771,0.00024657,2]
[341932772,1731310525567,-188.24995122,0.00024657,2]
[341932773,1731310525576,-256.18859378,0.00024657,2]
[341932774,1731310525592,-243.81140622,0.00024657,2]
[341932775,1731310525601,-200.62713878,0.00024657,2]
[341932776,1731310525612,-299.37286122,0.00024657,2]
[341932777,1731310525621,-145.06568378,0.00024657,2]
[341932778,1731310525632,-354.93431622,0.00024657,2]
[341932779,1731310525642,-155.65932978,0.00024657,2]
[341932780,1731310525653,-345.9714859,0.00024657,2]
[341932781,1731310525662,-164.6221601,0.00024657,2]
[341932782,1731310525673,-335.3778399,0.00024657,2]
[341932783,1731310525683,-175.2158061,0.00024657,2]
[341932784,1731310525694,-324.7841939,0.00024657,2]
[341932785,1731310525703,-185.8094521,0.00024657,2]
[341932786,1731310525719,-314.1905479,0.00024657,2]
[341932787,1731310525728,-196.4030981,0.00024657,2]
[341932788,1731310525739,-151.0,0.00024657,2]
[341932789,1731310525751,-151.0,0.00024657,2]
[341932790,1731310525763,-20.84579057,0.00024657,2]
[341932791,1731310525772,-130.15420943,0.00024657,2]
[341932792,1731310525789,-151.0,0.00024657,2]
[341932793,1731310525804,-166.556856,0.00024657,2]
[341932794,1731310525815,-52.28893457,0.00024657,2]
[341932795,1731310525824,-159.31017943,0.00024657,2]
[341932796,1731310525836,-340.68982057,0.00024657,2]
[341932797,1731310525845,-103.74872443,0.00024657,2]
[341932798,1731310525856,-396.25127557,0.00024657,2]
[341932799,1731310525865,-114.34237043,0.00024657,2]
[341932800,1731310525877,-385.65762957,0.00024657,2]
[341932801,1731310525888,-124.93601643,0.00024657,2]
[341932802,1731310525900,-375.06398357,0.00024657,2]
[341932803,1731310525909,-69.37456143,0.00024657,2]
[341932804,1731310525925,-430.62543857,0.00024657,2]
[341932805,1731310525934,-79.96820743,0.00024657,2]
[341932806,1731310525945,-420.03179257,0.00024657,2]
[341932807,1731310525955,-90.56185343,0.00024657,2]
[341932808,1731310525966,-211.599115,0.00024657,2]
[341932809,1731310525977,-197.83903157,0.00024657,2]
[341932810,1731310525986,-246.59951343,0.00024657,2]
[341932811,1731310526002,-71.12425268,0.00024657,2]
[341932812,1731310526012,-439.46939332,0.00024657,2]
[341932813,1731310526042,-60.53060668,0.00024657,2]
[341932814,1731310526052,-383.90794732,0.00024657,2]
[341932815,1731310526077,-116.09205268,0.00024657,2]
[341932816,1731310526086,-394.50159332,0.00024657,2]
[341932817,1731310526097,-105.49840668,0.00024657,2]
[341932818,1731310526107,-55.37778732,0.00024657,2]
[341932819,1731310526118,-236.26160487,0.00024657,2]
[341932820,1731310526129,-209.13081904,0.00024657,2]
[341932821,1731310526140,-27.13078579,0.00024657,2]
[341932822,1731310526158,-236.26160483,0.00024657,2]
[341932823,1731310526170,-240.44881588,0.00024657,2]
[341932824,1731310526179,-359.55118412,0.00024657,2]
[341932825,1731310526190,-154.18018174,0.00024657,2]
[341932826,1731310526201,-82.08142309,0.00024657,2]
[341932827,1731310526217,-186.5,0.00024657,2]
[341932828,1731310526233,-246.8272058,0.00024657,2]
[341932829,1731310526243,-500.0,0.00024657,2]
[341932830,1731310526252,-168.17150098,0.00024657,2]
[341932831,1731310526263,-183.32595267,0.00024657,2]
[341932832,1731310526272,-7.07404733,0.00024657,2]
[341932833,1731310526284,-183.37,0.00024657,2]
[341932834,1731310526295,-236.26160483,0.00024657,2]
[341932835,1731310526307,-73.29434784,0.00024657,2]
[341932836,1731310526316,-500.0,0.00024657,2]